fUSD/lending_fUSD_20250112
["ID","MTS","AMOUNT","RATE_DAILY","PERIOD"]
[348610698,1736672407799,-779.65040038,0.00029,120]
[348610699,1736672407824,-555.55555,0.000291,120]
[348610700,1736672407850,-500.0,0.00029119,120]
[348610701,1736672407875,-342.75496303,0.000292,120]
[348610702,1736672407900,-150.0,0.000294,120]
[348610703,1736672407927,-500.0,0.00029719,120]
[348610704,1736672407952,-555.55555,0.000298,120]
[348610705,1736672407978,-156.318,0.0002989,120]
[348610706,1736672408004,-1000.0,0.00029999,30]
[348610707,1736672408030,-1000.0,0.00029999,60]
[348610708,1736672408055,-1000.0,0.00029999,90]
[348610709,1736672408083,-50000.0,0.0003,30]
[348610710,1736672408108,-3029.57854553,0.0003,30]
[348610711,1736672408133,-350.0,0.0003,120]
[348610712,1736672408158,-167.18888889,0.0003,120]
[348610713,1736672408185,-259.0,0.0003,120]
[348610714,1736672408212,-200.0,0.0003,120]
[348610715,1736672408239,-1800.0,0.0003,31]
[348610716,1736672408264,-1046.50449415,0.0003,120]
[348610717,1736672408290,-3138.5519593,0.0003,120]
[348610718,1736672408320,-2000.0,0.0003,120]
[348610719,1736672408348,-2049.84774662,0.0003,120]
[348610720,1736672408375,-1000.0,0.0003,120]
[348610721,1736672408401,-200.0,0.00030137,60]
[348610722,1736672408427,-500.0,0.00030319,120]
[348610723,1736672408454,-555.55555,0.000305,120]
[348610724,1736672408483,-150.0,0.000305,120]
[348610725,1736672408513,-548.0,0.00030613,30]
[348610726,1736672408540,-250.0,0.000308,30]
[348610727,1736672408566,-259.0,0.00030849,120]
[348610728,1736672408594,-500.0,0.00030919,120]
[348610729,1736672408619,-167.18888889,0.00030986,120]
[348610730,1736672408646,-50000.0,0.00031,31]
[348610731,1736672408672,-1800.0,0.00031,32]
[348610732,1736672408698,-2499.999999,0.00031,120]
[348610733,1736672408724,-500.0,0.00031,120]
[348610734,1736672408750,-555.55555,0.000312,120]
[348610735,1736672408776,-332.82,0.000312,30]
[348610736,1736672408802,-500.0,0.00031519,120]
[348610737,1736672408827,-251.60942,0.000316,120]
[348610738,1736672408854,-259.0,0.00031699,120]
[348610739,1736672408879,-555.55555,0.000319,120]
[348610740,1736672408906,-167.18888889,0.00031973,120]
[348610741,1736672408935,-50000.0,0.00032,32]
[348610742,1736672408963,-1800.0,0.00032,33]
[348610743,1736672408988,-2000.0,0.00032,120]
[348610744,1736672409014,-500.0,0.00032119,120]
[348610745,1736672409040,-618.987,0.000325,120]
[348610746,1736672409065,-618.987,0.000325,120]
[348610747,1736672409091,-618.987,0.000325,120]
[348610748,1736672409118,-618.988,0.000325,120]
[348610749,1736672409145,-618.987,0.000325,120]
[348610750,1736672409175,-259.0,0.00032548,120]
[348610751,1736672409201,-555.5556,0.000326,120]
[348610752,1736672409226,-500.0,0.00032719,120]
[348610753,1736672409251,-5365.8896,0.000328,30]
[348610754,1736672409275,-200.0,0.00032877,60]
[348610755,1736672409300,-167.18888889,0.00032959,120]
[348610756,1736672409326,-50000.0,0.00033,33]
[348610757,1736672409352,-1800.0,0.00033,34]
[348610758,1736672409376,-2452.79457912,0.00033,120]
[348610759,1736672409400,-195.36203963,0.00033,120]
[348610760,1736672409428,-1000.0,0.00033,120]
[348610761,1736672409612,-500.0,0.00033319,120]
[348610762,1736672409643,-259.0,0.00033397,120]
[348610763,1736672409672,-1400.65,0.000335,31]
[348610764,1736672409705,-1400.65,0.000335,31]
[348610765,1736672409734,-1400.65,0.000335,31]
[348610766,1736672409763,-1400.65,0.000335,31]
[348610767,1736672409794,-1400.65,0.000335,31]
[348610768,1736672409824,-1400.65,0.000335,31]
[348610769,1736672409855,-1400.65,0.000335,31]
[348610770,1736672409884,-1400.65,0.000335,31]
[348610771,1736672409914,-1400.65,0.000335,31]
[348610772,1736672409942,-1400.65,0.000335,31]
[348610773,1736672409971,-1400.65,0.000335,31]
[348610774,1736672409999,-1400.65,0.000335,31]
[348610775,1736672410024,-768.0,0.00033674,30]
[348610776,1736672410049,-156.245,0.0003389,120]
[348610777,1736672410075,-500.0,0.00033919,120]
[348610778,1736672410100,-167.18888889,0.00033945,120]
[348610779,1736672410126,-50000.0,0.00034,34]
[348610780,1736672410152,-350.0,0.00034,120]
[348610781,1736672410178,-214.9,0.00034,120]
[348610782,1736672410203,-1800.0,0.00034,35]
[348610783,1736672410227,-100000.01,0.00034,120]
[348610784,1736672410254,-259.0,0.00034247,120]
[348610785,1736672410279,-500.0,0.00034519,120]
[348610786,1736672410305,-7939.65610046,0.0003489,30]
[348610787,1736672410332,-167.18888889,0.00034932,120]
[348610788,1736672410358,-1080.000001,0.00034949,62]
[348610789,1736672410384,-1000.0,0.00034999,120]
[348610790,1736672410412,-50000.0,0.00035,35]
[348610791,1736672410437,-2000.0,0.00035,30]
[348610792,1736672410462,-232.47037172,0.00035,120]
[348610793,1736672410490,-593.92058049,0.00035,120]
[348610794,1736672410515,-500.0,0.00035,120]
[348610795,1736672410540,-3252.30776261,0.00035,120]
[348610796,1736672410566,-500.0,0.00035,120]
[348610797,1736672410590,-8418.80785271,0.00035,30]
[348610798,1736672410614,-1048.91719222,0.00035,120]
[348610799,1736672410639,-1250.37052081,0.00035,120]
[348610800,1736672410665,-590.0,0.00035,120]
[348610801,1736672410690,-800.98616147,0.00035,30]
[348610802,1736672410714,-10000.0,0.00035,120]
[348610803,1736672410739,-3126.30668895,0.00035,120]
[348610804,1736672410764,-17000.0,0.00035,30]
[348610805,1736672410789,-24585.15536,0.00035,120]
[348610806,1736672410814,-34000.0,0.00035,120]
[348610807,1736672410843,-259.0,0.00035096,120]
[348610808,1736672410868,-500.0,0.00035119,120]
[348610809,1736672410892,-177.28,0.00035342,91]
[348610810,1736672410919,-3070.949,0.00035441,42]
[348610811,1736672410944,-200.0,0.00035616,60]
[348610812,1736672410969,-500.0,0.00035719,120]
[348610813,1736672410993,-167.18888889,0.00035918,120]
[348610814,1736672411017,-259.0,0.00035945,120]
[348610815,1736672411043,-50000.0,0.00036,36]
[348610816,1736672411069,-500.0,0.00036,120]
[348610817,1736672411097,-500.0,0.00036319,120]
[348610818,1736672411121,-3238.34460568,0.00036666,120]
[348610819,1736672411146,-300.00000099,0.00036789,31]
[348610820,1736672411174,-259.0,0.00036795,120]
[348610821,1736672411200,-99999.43807048,0.000368,30]
[348610822,1736672411225,-2068695.41249805,0.0003687,30]
[348610823,1736672419008,-2931304.58750195,0.0003687,30]
[348610824,1736672419035,-1068695.41249805,0.0003689,30]
[348610825,1736672423705,-931304.58750195,0.0003689,30]
[348610826,1736672423734,-167.18888889,0.00036904,120]
[348610827,1736672423762,-500.0,0.00036919,120]
[348610828,1736672423791,-50000.0,0.00037,37]
[348610829,1736672423819,-100000.0,0.00037,120]
[348610830,1736672423848,-100322.2699,0.00037,60]
[348610831,1736672423877,-6195.0,0.00037,120]
[348610832,1736672423904,-6011.0,0.00037,120]
[348610833,1736672423930,-2000.0,0.00037,60]
[348610834,1736672423957,-10000.0,0.00037,60]
[348610835,1736672423982,-90698.53207967,0.00037,60]
[348610836,1736672424008,-3360.72453881,0.00037,30]
[348610837,1736672424034,-500.0,0.00037,120]
[348610838,1736672424060,-94776.54050982,0.00037,90]
[348610839,1736672424085,-1041.179,0.00037,120]
[348610840,1736672424110,-20721.0,0.00037,30]
[348610841,1736672424135,-53269.48124748,0.00037,60]
[348610842,1736672424160,-15338.0,0.00037,117]
[348610843,1736672424187,-5000.94027201,0.00037298,30]
[348610844,1736672424212,-15000.0,0.000375,30]
[348610845,1736672424242,-55000.0,0.000375,120]
[348610846,1736672424270,-500.0,0.00037519,120]
[348610847,1736672424297,-259.0,0.00037644,120]
[348610848,1736672424325,-422783.4225761,0.000377,120]
[348610849,1736672424353,-154370.17676623,0.000377,120]
[348610850,1736672424380,-363099.0,0.0003789,60]
[348610851,1736672424409,-156.248,0.0003789,120]
[348610852,1736672424438,-167.18888889,0.0003789,120]
[348610853,1736672424465,-3500.04131709,0.00037989,120]
[348610854,1736672424495,-50000.0,0.00038,38]
[348610855,1736672424521,-2733.33465921,0.00038,120]
[348610856,1736672424547,-20170.52606262,0.00038,60]
[348610857,1736672424574,-350.0,0.00038,120]
[348610858,1736672424600,-946.9344918,0.00038,120]
[348610859,1736672424628,-366.20761912,0.00038,120]
[348610860,1736672424655,-300.0,0.00038,120]
[348610861,1736672424683,-2006.58,0.00038,120]
[348610862,1736672424710,-6769.63436805,0.00038,120]
[348610863,1736672424736,-2801.01978778,0.00038,120]
[348610864,1736672424762,-500.0,0.00038119,120]
[348610865,1736672424787,-677.47050482,0.00038141,120]
[348610866,1736672424813,-517.69088789,0.00038325,120]
[348610867,1736672424839,-1965.31706128,0.00038356,30]
[348610868,1736672424864,-200.0,0.00038356,60]
[348610869,1736672424891,-22585.81243879,0.000384,120]
[348610870,1736672424917,-299.94136481,0.000384,33]
[348610871,1736672424943,-255411.50236304,0.000384,33]
[348610872,1736672424969,-259.0,0.00038493,120]
[348610873,1736672424994,-214695.29694439,0.000385,120]
[348610874,1736672425019,-250000.0,0.000386,120]
[348610875,1736672425045,-250000.0,0.000387,120]
[348610876,1736672425070,-500.0,0.00038719,120]
[348610877,1736672425095,-250000.0,0.000388,120]
[348610878,1736672425122,-13866.01,0.000388,120]
[348610879,1736672425148,-21171.31165363,0.000388,120]
[348610880,1736672425176,-167.18888889,0.00038877,120]
[348610881,1736672425202,-124697.69941694,0.0003888,120]
[348610883,1736672440928,-24077.61498693,0.0003888,120]
[348610884,1736672440953,-155969.04899947,0.0003888,120]
[348610885,1736672440980,-250000.0,0.000389,120]
[348610886,1736672441008,-16872.9,0.00038909,117]
[348610887,1736672441036,-1000.0,0.00039,120]
[348610888,1736672441064,-1387.04867793,0.00039,120]
[348610889,1736672441091,-1002.0,0.00039,60]
[348610890,1736672441119,-2039.36765926,0.00039,120]
[348610891,1736672441147,-10000.0,0.00039,120]
[348610892,1736672441172,-250000.0,0.00039,120]
[348610893,1736672441199,-25150.32355525,0.00039,120]
[348610894,1736672441224,-256.76007884,0.00039,120]
[348610895,1736672441251,-1113.0,0.00039,120]
[348610896,1736672441275,-107534.01,0.00039,120]
[348610897,1736672441300,-5000.0,0.00039009,120]
[348610898,1736672441327,-5000.0,0.00039088,120]
[348610899,1736672441352,-250000.0,0.000391,120]
[348610900,1736672441376,-25000.0,0.00039104,120]
[348610901,1736672441400,-1102.9,0.00039112,120]
[348610902,1736672441425,-5000.0,0.00039123,120]
[348610903,1736672441451,-1670.36,0.00039128,120]
[348610904,1736672441476,-2184.45,0.00039141,120]
[348610905,1736672441501,-25000.0,0.00039176,120]
[348610906,1736672441526,-791.22,0.00039195,120]
[348610907,1736672441551,-250000.0,0.000392,120]
[348610908,1736672441576,-5000.0,0.00039295,120]
[348610909,1736672441601,-250000.0,0.000393,120]
[348610910,1736672441626,-500.0,0.00039319,120]
[348610911,1736672441651,-259.0,0.00039342,120]
[348610912,1736672441676,-5000.0,0.00039359,120]
[348610913,1736672441702,-5000.0,0.00039368,120]
[348610914,1736672441727,-120064.07740524,0.000394,120]
[348610915,1736672441755,-250000.0,0.000394,120]
[348610916,1736672441783,-5000.0,0.00039451,120]
[348610917,1736672441808,-1268.34,0.00039461,120]
[348610918,1736672441834,-200000.0,0.000395,120]
[348610919,1736672441859,-3864.5,0.0003953,120]
[348610920,1736672441886,-5000.0,0.00039532,120]
[348610921,1736672441912,-5000.0,0.00039548,120]
[348610922,1736672441938,-25000.0,0.00039552,120]
[348610923,1736672441965,-2268.68,0.00039581,120]
[348610924,1736672441995,-4934.86,0.00039583,120]
[348610925,1736672442021,-200000.0,0.000396,120]
[348610926,1736672442049,-5000.0,0.00039624,120]
[348610927,1736672442079,-5000.0,0.00039661,120]
[348610928,1736672442107,-13061.24,0.00039682,120]
[348610929,1736672442135,-2183.48,0.00039693,120]
[348610930,1736672442163,-1603.81,0.00039693,120]
[348610931,1736672442189,-200000.0,0.000397,120]
[348610932,1736672442217,-50000.0,0.000397,60]
[348610933,1736672442243,-5000.0,0.00039706,120]
[348610934,1736672442270,-2500.0,0.00039751,120]
[348610935,1736672442297,-2680.49,0.00039779,120]
[348610936,1736672442327,-200000.0,0.000398,120]
[348610937,1736672442355,-5000.0,0.0003983,120]
[348610938,1736672442382,-167.18888889,0.00039863,120]
[348610939,1736672442413,-363099.0,0.0003987,120]
[348610940,1736672442443,-5000.0,0.00039878,120]
[348610941,1736672442469,-200000.0,0.000399,120]
[348610942,1736672442496,-128270.57964584,0.000399,120]
[348610943,1736672442522,-306123.75010235,0.000399,120]
[348610944,1736672450791,-90639.02033107,0.000399,120]
[348610945,1736672450817,-3706.39,0.00039905,120]
[348610946,1736672450843,-2222.48,0.00039914,120]
[348610947,1736672450868,-500.0,0.00039919,120]
[348610948,1736672450893,-311.89,0.00039929,120]
[348610949,1736672450922,-2000.0,0.0004,120]
[348610950,1736672450949,-1185.39562002,0.0004,120]
[348610951,1736672450980,-477.76214023,0.0004,120]
[348610952,1736672451011,-3440.08060446,0.0004,120]
[348610953,1736672451051,-200000.0,0.0004,120]
[348610954,1736672451083,-1985.76043168,0.0004,120]
[348610955,1736672451112,-5544.0,0.0004,120]
[348610956,1736672451141,-5965.28436145,0.0004,120]
[348610957,1736672451168,-23428.25126455,0.0004,120]
[348610958,1736672451195,-5000.0,0.0004,60]
[348610959,1736672451221,-130700.6727282,0.0004,120]
[348610960,1736672451247,-20000.0,0.0004,120]
[348610961,1736672451273,-20000.0,0.0004,120]
[348610962,1736672451300,-20000.0,0.0004,120]
[348610963,1736672451327,-20000.0,0.0004,120]
[348610964,1736672451354,-20000.0,0.0004,120]
[348610965,1736672451381,-20000.0,0.0004,120]
[348610966,1736672451407,-20000.0,0.0004,120]
[348610967,1736672451435,-20000.0,0.0004,120]
[348610968,1736672451460,-20000.0,0.0004,120]
[348610969,1736672451491,-20000.0,0.0004,120]
[348610970,1736672451518,-9468.26790287,0.0004,120]
[348610971,1736672451542,-188.0,0.0004,120]
[348610972,1736672451568,-81596.22761288,0.0004,120]
[348610973,1736672451597,-10000.0,0.0004,120]
[348610974,1736672451623,-41117.0,0.0004,120]
[348610975,1736672451647,-2000.0,0.0004,120]
[348610976,1736672451671,-12851.97715116,0.0004,120]
[348610977,1736672451698,-3947.30241004,0.0004,120]
[348610978,1736672451725,-100218.83917051,0.0004,120]
[348610979,1736672451751,-111078.64785227,0.0004,120]
[348610980,1736672451775,-8267.87325806,0.0004,120]
[348610981,1736672451801,-227896.60405044,0.0004,120]
[348610982,1736672451826,-17400.73668423,0.0004,120]
[348610983,1736672451853,-22000.0,0.0004,60]
[348610984,1736672451880,-6769.63436805,0.0004,120]
[348610985,1736672451906,-2801.01978778,0.0004,120]
[348610986,1736672451934,-520.64,0.0004,120]
[348610987,1736672451958,-1705.45,0.0004,120]
[348610988,1736672451985,-5000.0,0.0004,120]
[348610989,1736672452015,-498.4,0.000401,120]
[348610990,1736672452042,-259.0,0.00040192,120]
[348610991,1736672452069,-1000.0,0.000404,120]
[348610992,1736672452098,-7940.75917048,0.000404,120]
[348610993,1736672452126,-400000.0,0.0004045,90]
[348610994,1736672452151,-500.0,0.00040519,120]
[348610995,1736672452178,-355013.8,0.0004066,120]
[348610996,1736672452204,-400000.0,0.0004075,120]
[348610997,1736672452230,-167.18888889,0.00040849,120]
[348610998,1736672452258,-1000.0,0.00040999,120]
[348610999,1736672452284,-909.78541654,0.00040999,120]
[348611000,1736672452313,-30000.0,0.00041,120]
[348611001,1736672452343,-259.0,0.00041041,120]
[348611002,1736672452371,-200.0,0.00041096,60]
[348611003,1736672452398,-200.0,0.00041096,120]
[348611004,1736672452423,-500.0,0.00041119,120]
[348611005,1736672452449,-50000.0,0.0004124,120]
[348611006,1736672452479,-520.0,0.000414,120]
[348611007,1736672452506,-388.14336601,0.000415,120]
[348611008,1736672452532,-500.0,0.00041719,120]
[348611009,1736672452558,-167.18888889,0.00041836,120]
[348611010,1736672452585,-156.411,0.0004189,120]
[348611011,1736672452612,-259.0,0.0004189,120]
[348611012,1736672452640,-300.0,0.00042,120]
[348611013,1736672452666,-200000.0,0.00042,120]
[348611014,1736672452692,-600.0,0.00042,120]
[348611015,1736672452718,-477.72484198,0.00042,120]
[348611016,1736672452742,-350.0,0.00042,120]
[348611017,1736672452767,-500.0,0.00042319,120]
[348611018,1736672452793,-2222.48,0.00042498,120]
[348611019,1736672452818,-2000.0,0.000425,120]
[348611020,1736672452844,-7755.79,0.000425,120]
[348611021,1736672452869,-7755.79,0.000425,120]
[348611022,1736672452894,-7755.79,0.000425,120]
[348611023,1736672452919,-259.0,0.0004274,120]
[348611024,1736672452944,-177.28,0.0004274,91]
[348611025,1736672452969,-395.0,0.000428,120]
[348611026,1736672452994,-167.18888889,0.00042822,120]
[348611027,1736672453018,-500.0,0.00042919,120]
[348611028,1736672453043,-1000.0,0.00042999,120]
[348611029,1736672453068,-300.0,0.00043,120]
[348611030,1736672453093,-1000.0,0.00043,120]
[348611031,1736672453298,-26431.23505181,0.00043,120]
[348611032,1736672453335,-4112.40512598,0.00043,120]
[348611033,1736672453362,-13539.26873609,0.00043,120]
[348611034,1736672453387,-5602.03957556,0.00043,120]
[348611035,1736672453420,-187.96,0.00043014,120]
[348611036,1736672453446,-48951.52,0.000432,60]
[348611037,1736672453472,-400.0,0.000433,120]
[348611038,1736672453501,-500.0,0.00043519,120]
[348611039,1736672453527,-259.0,0.00043589,120]
[348611040,1736672453555,-141792.48366244,0.000438,120]
[348611041,1736672453580,-5200.0,0.000438,120]
[348611042,1736672453606,-167.18888889,0.00043808,120]
[348611043,1736672453632,-926966.9707676,0.00043826,60]
[348611049,1736672703112,203.06570749,0.0002,120]
[348611050,1736672703154,410.0,0.0002,120]
[348611051,1736672703188,333.67,0.0002,120]
[348611052,1736672764433,-202.8,0.00018798,30]
[348611053,1736672764463,-202.8,0.00018798,30]
[348611054,1736672764493,-1506.44292927,0.00018798,60]
[348611055,1736672764519,-1000.0,0.00018798,30]
[348611056,1736672764547,-835.0,0.00018798,120]
[348611057,1736672764574,-1000.0,0.00018798,30]
[348611058,1736672764599,-1000.0,0.00018798,120]
[348611059,1736672764625,-1000.0,0.00018798,60]
[348611060,1736672764650,-1444.81158053,0.00018798,120]
[348611061,1736672764676,-1000.0,0.00018798,120]
[348611062,1736672764702,-1000.0,0.00018798,60]
[348611063,1736672764733,-1000.0,0.00018798,60]
[348611064,1736672764760,-1015.38,0.00018798,60]
[348611065,1736672764786,-1010.23594636,0.00018798,30]
[348611066,1736672764812,-202.8,0.00018798,30]
[348611067,1736672764838,-957.11408093,0.00018798,90]
[348611068,1736672764864,-1467.74614821,0.00018798,10]
[348611069,1736672764890,-999.999994,0.00018798,120]
[348611070,1736672764915,-503.08885463,0.00018798,30]
[348611071,1736672764941,-375.99625421,0.00018798,30]
[348611072,1736672764966,-862.50749034,0.00018798,30]
[348611073,1736672764992,-1000.0,0.00018798,30]
[348611074,1736672765019,-684.54713605,0.00018798,120]
[348611075,1736672765044,-175.17559945,0.00018798,120]
[348611076,1736672765069,-2013.93966209,0.00018798,120]
[348611077,1736672765094,-1979.79059734,0.00018798,30]
[348611078,1736672765119,-727.83032762,0.00018798,30]
[348611079,1736672765143,-693.67530486,0.00018798,10]
[348611080,1736672765169,-833.04272404,0.00018798,30]
[348611081,1736672765194,-272.02599726,0.00018798,30]
[348611082,1736672765221,-2328.33671543,0.00018798,120]
[348611083,1736672765246,-1007.81271174,0.00018798,15]
[348611084,1736672765272,-941.28242948,0.00018798,20]
[348611085,1736672765296,-261.09053872,0.00018798,30]
[348611086,1736672765321,-844.83532886,0.00018798,30]
[348611087,1736672765347,-300.0,0.00018798,15]
[348611088,1736672765372,-2614.20627261,0.00018798,60]
[348611089,1736672765397,-852.91577004,0.00018798,30]
[348611090,1736672765423,-918.71063891,0.00018798,30]
[348611091,1736672765448,-210.90364271,0.00018798,120]
[348611092,1736672765475,-240.78640922,0.00018798,60]
[348611093,1736672765503,-205.62651378,0.00018798,30]
[348611094,1736672765530,-949.11029468,0.00018798,30]
[348611095,1736672765557,-170.89327878,0.00018798,120]
[348611096,1736672765587,-1218.53016292,0.00018798,15]
[348611097,1736672765612,-2203.70810724,0.00018798,10]
[348611098,1736672765639,-166.66007446,0.00018798,120]
[348611099,1736672765665,-1222.29086386,0.00018798,120]
[348611100,1736672765690,-346.89681487,0.00018798,30]
[348611101,1736672765719,-2233.68057194,0.00018798,10]
[348611102,1736672765748,-1000.0,0.00018798,10]
[348611103,1736672765778,-181.05557409,0.00018798,120]
[348611104,1736672765807,-500.0,0.00018798,10]
[348611105,1736672765834,-377.87037877,0.00018798,120]
[348611106,1736672765864,-945.25840017,0.00018798,120]
[348611107,1736672765891,-901.38102865,0.00018798,120]
[348611108,1736672765917,-949.99926005,0.00018798,120]
[348611109,1736672765945,-248.96891084,0.00018798,120]
[348611110,1736672765976,-873.01817181,0.00018798,30]
[348611111,1736672766008,-269.81733398,0.00018798,10]
[348611112,1736672766036,-548.89703871,0.00018798,120]
[348611113,1736672766063,-201.06196,0.00018798,30]
[348611114,1736672766091,-1322.17766838,0.00018798,120]
[348611115,1736672766118,-548.02355927,0.00018798,60]
[348611116,1736672766145,-605.21248185,0.00018798,30]
[348611117,1736672766170,-263.35172082,0.00018798,30]
[348611118,1736672766196,-369.55635486,0.00018798,45]
[348611119,1736672766227,-1744.51531929,0.00018798,30]
[348611120,1736672766253,-2294.77134092,0.00018798,30]
[348611121,1736672766279,-151.81115281,0.00018798,120]
[348611122,1736672766304,-1776.06516179,0.00018798,120]
[348611123,1736672766329,-1444.36072043,0.00018798,30]
[348611124,1736672766355,-450.66372161,0.00018798,30]
[348611125,1736672766380,-2122.14076154,0.00018798,120]
[348611126,1736672766406,-1100.29546289,0.00018798,30]
[348611127,1736672766431,-756.0,0.00018798,120]
[348611128,1736672766463,-297.49771052,0.00018798,30]
[348611129,1736672766504,-2167.47435013,0.00018798,30]
[348611130,1736672766532,-1094.46607984,0.00018798,120]
[348611131,1736672766558,-832.70975866,0.00018798,120]
[348611132,1736672766586,-2000.26863796,0.00018798,120]
[348611133,1736672766613,-421.59627738,0.00018798,30]
[348611134,1736672766640,-1649.92012783,0.00018798,120]
[348611135,1736672766667,-358.68355861,0.00018798,11]
[348611136,1736672766695,-155.3885882,0.00018798,120]
[348611137,1736672766724,-5000.0,0.00018798,120]
[348611138,1736672766753,-590.67644687,0.00018798,120]
[348611139,1736672766781,-2011.0,0.00018798,120]
[348611140,1736672766807,-158.0,0.00018798,120]
[348611141,1736672766834,-465.89770163,0.00018798,120]
[348611142,1736672766862,-29490.70187568,0.00018798,30]
[348611143,1736672766890,-1816.78710308,0.00018798,30]
[348611144,1736672767155,-923.1445452,0.00018798,120]
[348611145,1736672767184,-150.0,0.00018798,30]
[348611146,1736672767210,-5050.0,0.00018798,31]
[348611147,1736672767237,-1001.44214144,0.00018798,30]
[348611148,1736672767263,-15000.000001,0.00018798,31]
[348611149,1736672767289,-400.0,0.00018798,60]
[348611150,1736672767314,-423.00129287,0.00018798,30]
[348611151,1736672767340,-154.11584851,0.00018798,120]
[348611152,1736672767367,-5050.0,0.00018798,32]
[348611153,1736672767395,-515.28051437,0.00018798,120]
[348611154,1736672767421,-1516.0,0.00018798,120]
[348611155,1736672767447,-6769.63436805,0.00018798,120]
[348611156,1736672767473,-2801.01978778,0.00018798,120]
[348611157,1736672767499,-603.09873784,0.00018798,120]
[348611158,1736672767525,-1087.57,0.00018798,120]
[348611159,1736672767550,-246000.0,0.00018798,120]
[348611160,1736672767582,-95893.32329558,0.00018798,15]
[348611161,1736672773587,-4106.67670442,0.00018798,15]
[348611162,1736672773614,-242.793298,0.00018798,30]
[348611163,1736672773641,-159.0,0.00018798,30]
[348611164,1736672822966,203.06570749,0.0002,120]
[348611165,1736672883856,-1000.0,0.00021917,120]
[348611166,1736672883883,-1000.0,0.00021917,120]
[348611167,1736672883910,-946.17578027,0.00021917,120]
[348611168,1736672883940,-150.0,0.00022291,120]
[348611169,1736672883967,-2000.0,0.00022373,120]
[348611170,1736672883996,-200.0,0.00022373,120]
[348611288,1736673032262,-300.0,9.048e-05,2]
[348611289,1736673032272,-1586.62078782,9.049e-05,2]
[348611290,1736673032371,-475.22000005,9.049e-05,2]
[348611291,1736673032385,-4000.0000016,9.049e-05,2]
[348611292,1736673032397,-586.2,9.049e-05,2]
[348611293,1736673032409,-983.1350681,9.049e-05,2]
[348611294,1736673032421,-531.62414243,9.049e-05,2]
[348611295,1736673032430,-240.83,9.049e-05,2]
[348611296,1736673032440,-367.12045686,9.116e-05,2]
[348611297,1736673032451,-632.87954314,9.116e-05,2]
[348611298,1736673032460,-1029.86,9.159e-05,2]
[348611299,1736673032469,-7233.27,9.237e-05,2]
[348611300,1736673032478,-366.34,9.252e-05,2]
[348611301,1736673032487,-250.0,9.307e-05,2]
[348611302,1736673032496,-599.91,9.489e-05,2]
[348611303,1736673032505,-739.0,9.808e-05,2]
[348611304,1736673032514,-150.0,9.863e-05,2]
[348611305,1736673032523,-150.0,9.863e-05,2]
[348611306,1736673032532,-9873.9846,9.88e-05,2]
[348611307,1736673032541,-1000.0,9.88e-05,2]
[348611308,1736673032550,-500.0,9.886e-05,2]
[348611309,1736673032559,-663.695,9.898e-05,2]
[348611310,1736673032569,-644.1281,9.899e-05,2]
[348611311,1736673032578,-1534.47429526,9.95e-05,2]
[348611312,1736673032589,-150.0,9.972e-05,2]
[348611313,1736673032598,-500.0,9.997e-05,2]
[348611314,1736673032612,-500.0,9.997e-05,2]
[348611315,1736673032621,-500.0,9.997e-05,2]
[348611316,1736673032631,-500.0,9.997e-05,2]
[348611317,1736673032639,-500.0,9.997e-05,2]
[348611318,1736673032649,-500.0,9.997e-05,2]
[348611319,1736673032658,-500.0,9.997e-05,2]
[348611320,1736673032667,-642.5,9.997e-05,2]